Cogmind - Beta 11.1 @@@ ROGUE MODE // 2022.04.29 @ 22:04:45 Player: Torako Result: Destroyed by D-53 Grenadier with Mini Grenade Launcher Performance ------------- Evolutions (0) 0 Regions Visited (4) 800 Robots Destroyed (27) 135 Value Destroyed (576) 576 Prototype IDs (0) 0 Alien Tech Used (0) 0 Bonus (0) 0 TOTAL SCORE: 1511 Bonus ------- None Cogmind --------- Core Integrity 0/250 Matter 290/300 Energy 80/100 System Corruption 0% Temperature Cool (2) Movement Walking (120) Location -9/Mines Parts ------- > --- POWER (1) -------- (None) > --- PROPULSION (2) --- Improved Aluminum Leg Improved Aluminum Leg > --- UTILITY (2) ------ Improved Heat Sink Medium Storage Unit > --- WEAPON (2) ------- Light EM Pulse Cannon > --- INVENTORY (10) --- High-capacity Battery (250) Structural Scanner Sensor Array Light Armor Plating Light Armor Plating Hardened Light Armor Plating Light EM Pulse Cannon Light Assault Rifle Peak State ------------ > --- POWER ------------ Light Ion Engine > --- PROPULSION ------- Improved Aluminum Leg Improved Aluminum Leg > --- UTILITY ---------- Improved Heat Sink Small Storage Unit > --- WEAPON ----------- Light EM Pulse Cannon Assault Rifle > --- INVENTORY -------- Improved Aluminum Leg Improved Aluminum Leg High-capacity Matter Pod Sensor Array Signal Interpreter Light Armor Plating Light Armor Plating Light EM Pulse Cannon [Rating: 13] Favorites ----------- Power Light Ion Engine Engine Light Ion Engine Propulsion Improved Aluminum Leg Treads Light Treads Leg Improved Aluminum Leg Utility Small Storage Unit Device Improved Heat Sink Storage Small Storage Unit Protection Light Armor Plating Weapon Medium Laser Energy Gun Medium Laser Energy Cannon Light EM Pulse Cannon Ballistic Gun Assault Rifle Launcher Grenade Launcher Build | -11 -10 -10 -10 -9 ------- Run | Scr Mat Min Exi Min Slots Evolved . | . . . . . Power . | . . . . . Propulsion . | . . . . . Utility . | . . . . . Weapon . | . . . . . Parts Attached 27 | 6 7 4 3 7 Power 5 | 1 1 2 . 1 Engine 5 | 1 1 2 . 1 Core . | . . . . . Reactor . | . . . . . Propulsion 6 | 2 2 . . 2 Treads 2 | 2 . . . . Leg 4 | . 2 . . 2 Wheel . | . . . . . Hover . | . . . . . Flight . | . . . . . Utility 8 | 1 2 2 3 . Device 3 | . 1 1 1 . Storage 3 | 1 . . 2 . Processor . | . . . . . Hackware . | . . . . . Protection 2 | . 1 1 . . Artifact . | . . . . . Weapon 8 | 2 2 . . 4 Energy Gun 2 | 1 1 . . . Energy Cannon 3 | . 1 . . 2 Ballistic Gun 1 | 1 . . . . Ballistic Cannon . | . . . . . Launcher 2 | . . . . 2 Special Weapon . | . . . . . Impact Weapon . | . . . . . Slashing Weapon . | . . . . . Piercing Weapon . | . . . . . Special Melee Weapon . | . . . . . Unidentified Prototypes . | . . . . . Parts Lost 7 | . . 1 . 6 Power 2 | . . 1 . 1 Propulsion 2 | . . . . 2 Utility . | . . . . . Weapon 3 | . . . . 3 Highest Loss Streak 4 | . . 1 . 4 To Critical Strikes . | . . . . . Average Slot Usage (%) 99 | . 97 100 100 100 Engine 14 | . 14 14 14 14 Treads 8 | . 20 . . . Leg 19 | . 7 28 28 28 Device 8 | . 9 9 . 14 Storage 14 | . 14 14 16 14 Protection 4 | . 3 4 11 . Energy Gun 12 | . 11 14 14 14 Energy Cannon 9 | . 3 14 14 14 Ballistic Gun 5 | . 13 . . . Naked Turns . | . . . . . Heaviest Build 23 | 12 17 17 23 20 Greatest Support 40 | 40 40 26 26 26 Greatest Overweight (x) 1 | 1 . . . 1 Average Overweight (x) . | . . . . . Largest Inventory Capacity 10 | 8 8 8 10 10 Average Capacity 8 | 7 8 8 8 10 Most Carried 10 | 6 8 8 9 10 Average Carried 8 | 4 7 7 8 9 Final Capacity 10 | 8 8 8 10 10 Final Carried 9 | 6 8 8 9 8 Class Distribution -------------------- 100% | Mutant Dominant Class ---------------- Mutant | -10/Materials Mutant | -10/Mines Mutant | -10/Exiles Mutant | -9/Mines Resources | -11 -10 -10 -10 -9 ----------- Run | Scr Mat Min Exi Min Matter Collected 709 | 166 371 72 . 100 Remotely . | . . . . . Salvage Created 696 | . 384 147 . 165 Parts 54 | . 21 8 . 25 Haulers Intercepted . | . . . . . Recyclers Shooed . | . . . . . Parts Field Recycled . | . . . . . Retrieved Matter . | . . . . . Parts Self-Destructed . | . . . . . Prevented . | . . . . . Kills | -11 -10 -10 -10 -9 ------- Run | Scr Mat Min Exi Min Combat Hostiles Destroyed 21 | . 9 5 . 7 Guns 8 | . 8 . . . Cannons 8 | . 1 5 . 2 AOE 5 | . . . . 5 Classes Destroyed 5 | . 2 1 . 2 Builder 4 | . . . . 4 Tunneler 1 | . . . . 1 Watcher 1 | . 1 . . . Swarmer 10 | . . 3 . 7 Grunt 11 | . 9 2 . . Best Kill Streak 4 | . 3 3 . 4 Combat Bots Only 4 | . 3 3 . 4 Max Kills in Single Turn 2 | . 1 1 . 2 Gunslinging . | . . . . . Exploded 2 | . . . . 2 Melee . | . . . . . Uniques/NPCs Destroyed . | . . . . . Combat | -11 -10 -10 -10 -9 -------- Run | Scr Mat Min Exi Min Damage Taken 1258 | . 467 258 . 533 Core 260 | . 73 29 . 158 Absorbed by Shields . | . . . . . Core Remaining (%) 100 | 100 . . . . Volleys Fired 63 | . 31 18 . 14 Largest 2 | . 2 2 . 2 Hottest 106 | . 76 106 . 106 Shots Fired 114 | . 61 28 . 25 Gun 85 | . 57 17 . 11 Cannon 26 | . 4 11 . 11 Launcher 3 | . . . . 3 Special . | . . . . . Kinetic 31 | . 31 . . . Thermal 54 | . 26 17 . 11 Explosive 3 | . . . . 3 Electromagnetic 26 | . 4 11 . 11 Robot Hit Streak 20 | . 20 5 . 10 Robot Miss Streak 3 | . 2 3 . 2 Penetration Max . | . . . . . Secondary Targets . | . . . . . Shots Hit Robots 83 | . 49 18 . 16 Core Hits 39 | . 19 7 . 13 Critical Kills . | . . . . . Critical Parts Destroyed . | . . . . . Critical Strikes 3 | . 2 1 . . Burn 3 | . 2 1 . . Melee Attacks . | . . . . . Impact . | . . . . . Slashing . | . . . . . Piercing . | . . . . . Sneak Attacks . | . . . . . Combat Hostiles . | . . . . . Follow-up Attacks . | . . . . . Damage Inflicted 1602 | . 682 313 . 607 Guns 824 | . 605 130 . 89 Cannons 428 | . 77 183 . 168 Explosions 350 | . . . . 350 Melee . | . . . . . Ramming . | . . . . . Kinetic 315 | . 315 . . . Thermal 545 | . 290 130 . 125 Explosive 314 | . . . . 314 Electromagnetic 428 | . 77 183 . 168 Impact . | . . . . . Slashing . | . . . . . Piercing . | . . . . . Highest Corruption . | . . . . . Average Corruption . | . . . . . Corruption Purged . | . . . . . Corruption Blocked . | . . . . . Overload Shots . | . . . . . Overflow Damage 4 | . . . . 4 Projectiles 3 | . . . . 3 Explosions 1 | . . . . 1 Melee . | . . . . . Knockbacks . | . . . . . Impact . | . . . . . Kinetic . | . . . . . Secondary . | . . . . . Self-Inflicted Damage 87 | . . . . 87 Shots 4 | . . . . 4 Rammed . | . . . . . Targets Rammed . | . . . . . Kicked . | . . . . . Crushed . | . . . . . Highest Temperature 273 | . 129 273 . 15 Average Temperature 54 | . 53 96 . 4 Received Heat Transfer 330 | . 255 75 . . Siege Activations . | . . . . . Robots Corrupted . | . . . . . Combat Hostiles . | . . . . . Parts Fried . | . . . . . Impact Corruptions . | . . . . . Robots Melted . | . . . . . Combat Hostiles . | . . . . . Parts Melted 4 | . 2 2 . . Heat Transferred 1715 | . 962 444 . 309 Parts Sabotaged . | . . . . . Parts Stolen . | . . . . . Parts Stripped . | . . . . . Power Chain Reactions 1 | . . . . 1 Missiles Intercepted . | . . . . . Alert | -11 -10 -10 -10 -9 ------- Run | Scr Mat Min Exi Min Peak Influence 255 | . 244 126 . 255 Initial 16 | . . 16 . . Average 109 | . 84 95 . 193 Maximum Alert Level 1 | . 1 . . 1 Low Security (%) 83 | 100 96 100 . 39 Level 1 16 | . 3 . . 60 Level 2 . | . . . . . Level 3 . | . . . . . Level 4 . | . . . . . Level 5 . | . . . . . High Security . | . . . . . Max Security . | . . . . . Squads Dispatched 1 | . 1 . . . Investigation 1 | . 1 . . . Extermination . | . . . . . Reinforcement . | . . . . . Assault . | . . . . . Garrison . | . . . . . Intercept . | . . . . . Searches Triggered . | . . . . . Construction Impeded . | . . . . . Haulers Reinforced . | . . . . . Active Scanning Responses . | . . . . . Cargo Convoy Interrupts . | . . . . . Stealth | -11 -10 -10 -10 -9 --------- Run | Scr Mat Min Exi Min Distress Signals 1 | . 1 . . . Communications Jammed . | . . . . . Distress Signals . | . . . . . Times Spotted 30 | . 11 5 . 14 Peak Tracking Total 11 | . 3 3 . 11 Tactical Retreats 1 | . . . . 1 Traps | -11 -10 -10 -10 -9 ------- Run | Scr Mat Min Exi Min Traps Triggered . | . . . . . Indirectly . | . . . . . Trap Hack Attempts . | . . . . . Triggered . | . . . . . Disarmed . | . . . . . Reprogrammed . | . . . . . Reused . | . . . . . Traps Extracted . | . . . . . Installed . | . . . . . Triggered . | . . . . . Machines | -11 -10 -10 -10 -9 ---------- Run | Scr Mat Min Exi Min Machines Disabled 2 | . 1 . . 1 Max in Single Turn 1 | . 1 . . 1 Machines Sabotaged . | . . . . . Garrisons Compromised . | . . . . . Overloaded Fab Kills . | . . . . . Hacking | -11 -10 -10 -10 -9 --------- Run | Scr Mat Min Exi Min Machines Accessed 4 | . 3 . 1 . Terminals 2 | . 2 . . . Fabricators . | . . . . . Repair Stations . | . . . . . Recycling Units 1 | . 1 . . . Scanalyzers . | . . . . . Garrison Access . | . . . . . Total Hacks 10 | . 9 . 1 . Successful 7 | . 6 . 1 . Failed 3 | . 3 . . . Catastrophic . | . . . . . Database Lockouts . | . . . . . Manual 9 | . 9 . . . Terminals 8 | . 8 . . . Fabricators . | . . . . . Repair Stations . | . . . . . Recycling Units 1 | . 1 . . . Scanalyzers . | . . . . . Garrison Access . | . . . . . Terminal Hacks 5 | . 4 . 1 . Record 1 | . . . 1 . Robot Analysis 1 | . 1 . . . Branch Access Points 1 | . 1 . . . Terminal Index 1 | . 1 . . . Unreport Threat 1 | . 1 . . . Fabricator Hacks . | . . . . . Repair Station Hacks . | . . . . . Recycling Unit Hacks . | . . . . . Scanalyzer . | . . . . . Garrison Access Hacks . | . . . . . Unauthorized Hacks 2 | . 2 . . . Terminals 1 | . 1 . . . Disrupt 1 | . 1 . . . Fabricators . | . . . . . Repair Stations . | . . . . . Recycling Units 1 | . 1 . . . Tunnel 1 | . 1 . . . Scanalyzers . | . . . . . Garrison Access . | . . . . . Data Cores Recovered . | . . . . . Used . | . . . . . Hacking Detections . | . . . . . Full Trace Events . | . . . . . Feedback Events . | . . . . . Feedback Blocked . | . . . . . Robot Schematics Acquired . | . . . . . Robots Built . | . . . . . Authchips . | . . . . . Time . | . . . . . Total Robot Build Rating . | . . . . . Part Schematics Acquired . | . . . . . Parts Built . | . . . . . Authchips . | . . . . . Time . | . . . . . Total Part Build Rating . | . . . . . Parts Repaired . | . . . . . Time . | . . . . . Parts Recycled . | . . . . . Recycled Matter . | . . . . . Retrieved Matter . | . . . . . Retrieved Components . | . . . . . Parts Scanalyzed . | . . . . . Part Schematics Acquired . | . . . . . Parts Damaged . | . . . . . Bothacking | -11 -10 -10 -10 -9 ------------ Run | Scr Mat Min Exi Min Used RIF Installer . | . . . . . Robots Hacked . | . . . . . Non-combat . | . . . . . Combat . | . . . . . Robot Hacks Applied . | . . . . . Relay Couplers Released . | . . . . . Fabnet Peak Effective % . | . . . . . Robots Rewired . | . . . . . Allies Hacked . | . . . . . Hacks Repelled . | . . . . . Allies | -11 -10 -10 -10 -9 -------- Run | Scr Mat Min Exi Min Total Allies . | . . . . . Largest Group . | . . . . . Highest-Rated Group . | . . . . . Highest-Rated Ally . | . . . . . Total Orders . | . . . . . Ally Attacks . | . . . . . Total Damage . | . . . . . Kills . | . . . . . Allies Corrupted . | . . . . . Allies Melted . | . . . . . Intel | -11 -10 -10 -10 -9 ------- Run | Scr Mat Min Exi Min Robot Analysis Total 1 | . 1 . . . Derelict Logs Recovered 2 | . . 1 . 1 Drone Launches . | . . . . . Drone Recoveries . | . . . . . Exploration | -11 -10 -10 -10 -9 ------------- Run | Scr Mat Min Exi Min Turns Passed 1555 | 75 615 294 248 323 Spaces Moved 987 | 44 320 196 203 224 Core 9 | 9 . . . . Treads 255 | 35 220 . . . Legs 723 | . 100 196 203 224 Wheels . | . . . . . Hover . | . . . . . Flight . | . . . . . Fastest Speed 50 | 50 120 120 120 120 Average Speed 129 | 138 147 120 120 120 Slowest Speed 190 | 160 160 120 120 190 Overloaded Moves . | . . . . . Propulsion Burnouts . | . . . . . Robots Hopped . | . . . . . Cave-ins Triggered . | . . . . . Exploration Rate (%) 42 | 3 59 44 60 47 Regions Visited 4 Branch Regions 3 Pre-discovered Areas 2 | . 1 . 1 . Known Exits Taken 1 | . 1 . . . Unknown Exits Taken 3 | 1 . 1 1 . Scrap Searched 1 | . . 1 . . Spaces Dug . | . . . . . Terrain Destroyed 23 | . . . . 23 Melee . | . . . . . Projectile . | . . . . . AOE 23 | . . . . 23 Terrain Rammed . | . . . . . Walls Destroyed . | . . . . . Machines Disabled . | . . . . . Actions | -11 -10 -10 -10 -9 --------- Run | Scr Mat Min Exi Min Total 1150 | 55 408 227 207 253 Wait 30 | . 24 4 . 2 Move 983 | 43 319 195 202 224 Hop . | . . . . . Pick Up 25 | 6 12 2 1 4 Fast Attach 13 | 6 5 2 . . Attach 4 | . . . . 4 Detach . | . . . . . Swap 10 | . 2 2 3 3 Drop 22 | . 15 4 1 2 Fire 63 | . 31 18 . 14 Melee . | . . . . . Ram . | . . . . . Kick . | . . . . . Crush . | . . . . . Escape Stasis . | . . . . . Rewire . | . . . . . Trap . | . . . . . Miscellaneous . | . . . . . Route ------- -11/Scrapyard -10/Materials (discovered 3 exits: [*Mat] / *Min x2) -10/Mines -10/Exiles -9/Mines History --------- Turn | Location | Event 2 | -11/Scrapyard | Met Revision 17 10 | -11/Scrapyard | Discovered new exit (range 14) 76 | -11/Scrapyard | Entered Materials 317 | -10/Materials | Build established: Mutant 568 | -10/Materials | Discovered new exit (range 5) 570 | -10/Materials | Identified exit to Mines 691 | -10/Materials | Entered Mines 726 | -10/Mines | Learned location of 1 exit from Materials 980 | -10/Mines | Deemed a non-threat by the Exiles lab entrance 980 | -10/Mines | Discovered new exit (range 5) 985 | -10/Mines | Entered Exiles 1015 | -10/Exiles | Met 8R-AWN 1033 | -10/Exiles | Met EX-HEX 1069 | -10/Exiles | Met EX-BIN 1085 | -10/Exiles | Met EX-DEC 1090 | -10/Exiles | Learned location of Zion (-7) 1217 | -10/Exiles | Discovered new exit (range 14) 1233 | -10/Exiles | Entered Mines 1362 | -9/Mines | Core integrity fell below 50% 1529 | -9/Mines | Assembled infested the area 1534 | -9/Mines | Assisted by a Guerilla fighting off Assembled 1554 | -9/Mines | Core integrity fell below 20% 1556 | -9/Mines | Destroyed by D-53 Grenadier with Mini Grenade Launcher Last Messages --------------- U-05 Engineer destroyed. Acquired 11 matter. Acquired Structural Scanner. K-01 Serf collects debris. The unstable cave ceiling collapses. K-01 Serf collects debris. ALERT: Infestation in the mines, dispatching Demolisher response squad. 74-2DV(h): "I'll hold them off! Go on ahead or try to find another way!" HV Slug penetrates Wall. A derelict emerges from the shadows: "You need to get out of here! I've been tracking a group of Assembled to figure out where they're coming from, and they're closing on this area, come on!" HV Slug penetrates Wall. C-30 ARC bursts open, deploying its payload. D-53 Grenadier unfolds itself. Imp. Aluminum Leg destroyed. K-01 Serf collects debris. Med. Laser destroyed. Lgt. Ion Engine destroyed. R-06 Scavenger destroyed. Map ----- +----------------------------------------------------+ | ???????????????????????????????????????????# # | | ????????????????????????????????????????????# | | ????????????????????????????????????????????## | | ?????????????????????????????????????????????## ? | | ??????????????????????????????????????????????##?? | | ?????????????????????????????????????????????????? | | ?????????????????????????????????????????????????? | | ?????????????????????????????????????????????????? | | ????????????????????????????????????#????????????? | | ??????????????????????????????????? #????????????? | | ??????????????????????????????????" #????????????? | | ?????????????????????????????????#%"##???????????? | | ????????????????????????????????# " #???????????? | | ???????????????????????????????# #???????????# | | ??????????????????????????????# #??????????## | | ?????????????????????????????#!d #?##???????# | | ????????????????????????????#d #?## #??????# | | ??????????????????????###### ### ??????# | | ?????????????????????## #?# ??????## | | ????????????????????## t #?## #???????# | | ???????###"*######### #### #???##### | | ?# !%% a ### ##### | | ?" = ### ## ## | | ???################### ##?# # #? | | ?????????????????????# ! #???# = ## | | ???????????????????### @ = #??????# * # | | ??????????????????## *%* #??????# ## | | ??????????????????# k = ##??????# ### | | ?????????????????## #### r ##?????# ### | | ??????????######## #### ####### ## | | ?????????## / ## ## ## | | ?????????# t ### #### | | ?????????# ##### ##########?## #??# | | ?????????#####???# ## ? #??? | | ?????????????????# ### ! #??? | | ?????????????????# #?## ## ########### #####??? | | ?????????????????# #??###### #??????????????????? | | ?????????????????# #??????## #??????????????????? | | ????????####?????# #??????# #######????????????? | | ????????# ###### ######## # #????????????? | | ????????#|% =! =| #????????????? | | ????????# ! ##### ######### #????????????? | | ????????######???# #???????# # * #????????????? | | ?????????????????# #???????##### #????????????? | | ?????????????????# #??########?# *= #????????????? | | ?????????????????# ####"""# ### #????????????? | | ?????????????????# =%! ######????????????? | | ?????????????????######"""# #????????????????? | | ??????????????????????###### #???????????????? | | ????????????????????????????#####????????????????? | +----------------------------------------------------+ Best States ------------- Heat Dissipation 39 Energy Generation 10 Energy Capacity 375 Matter Stores 300 Matter Capacity 300 Sight Range 16 Terrain Scan Density 10 Armor Coverage 150 Evasion (%) 55 Recoil Reduction 2 Item Schematics ----------------- None Robot Schematics ------------------ None Fabricated ------------ Nothing Alien Tech Used ----------------- None Achievements -------------- None Challenges ------------ None Game ------ Seed MicroLayeredRecalibrator Manual? 0 Play Time 00:11:57 Cumulative 317.3 hours Start 2022.04.29 @ 21:54:57 End 2022.04.29 @ 22:04:45 Sessions 1 Manual Loads 0 Difficulty Rogue Special Mode None Game No. 315 Rogue 315 Adventurer 0 Explorer 0 Win Type - Total 20 Types 14/0/4/2/0/0/0/0/0 Lore% 82 Gallery% 88 Achievement% 79 Wizard Run 0 Options --------- ASCII 0 Keyboard 1 Movement Numpad Keybinds 0 Fullscreen 1 Font 18/SmallcapsGlow Map View 76x50 Tactical HUD 1 Map Filters NONE Filters NONE Steam 1 RUN: 2b65a8a6-c1a9-4b87-aef5-2a84a5e7f432